[Event "Titled Tuesday Blitz November 29 Late 2022"]
[White "Clawitter, Craig"]
[Black "Burke, Paul"]
[WhiteFideId "2023105"]
[BlackFideId "2605767"]
[WhiteElo "2259"]
[BlackElo "1922"]
[Result "1-0"]
[Round "08"]
[TimeControl "180+1"]
[Date "2022.11.30"]
[WhiteClock "0:00:12"]
[BlackClock "0:01:04"]

1. e4 {[%clk 0:02:52]}  e5 {[%clk 0:02:59]} 2. Nf3 {[%clk 0:02:49]}  Nc6 {[%clk 0:02:59]} 3. Bb5 {[%clk 0:02:48]}  f5 {[%clk 0:02:58]} 4. Nc3 {[%clk 0:02:46]}  Nf6 {[%clk 0:02:58]} 5. exf5 {[%clk 0:02:41]}  e4 {[%clk 0:02:56]} 6. Bxc6 {[%clk 0:02:23]}  dxc6 {[%clk 0:02:54]} 7. Ng5 {[%clk 0:02:11]}  Be7 {[%clk 0:02:52]} 8. Ngxe4 {[%clk 0:01:57]}  O-O {[%clk 0:02:46]} 9. O-O {[%clk 0:01:54]}  Bxf5 {[%clk 0:02:46]} 10. Nxf6+ {[%clk 0:01:46]}  Bxf6 {[%clk 0:02:45]} 11. d3 {[%clk 0:01:44]}  Qd7 {[%clk 0:02:33]} 12. Ne4 {[%clk 0:01:35]}  Bxe4 {[%clk 0:02:27]} 13. dxe4 {[%clk 0:01:35]}  Qxd1 {[%clk 0:02:27]} 14. Rxd1 {[%clk 0:01:35]}  Rad8 {[%clk 0:02:27]} 15. Re1 {[%clk 0:01:11]}  Rfe8 {[%clk 0:02:05]} 16. g3 {[%clk 0:00:47]}  Rd4 {[%clk 0:01:59]} 17. f3 {[%clk 0:00:41]}  b6 {[%clk 0:01:41]} 18. c3 {[%clk 0:00:38]}  Rd3 {[%clk 0:01:40]} 19. Kg2 {[%clk 0:00:35]}  Red8 {[%clk 0:01:39]} 20. Bf4 {[%clk 0:00:33]}  R8d7 {[%clk 0:01:38]} 21. e5 {[%clk 0:00:24]}  Be7 {[%clk 0:01:37]} 22. e6 {[%clk 0:00:24]}  Rd8 {[%clk 0:01:30]} 23. Re2 {[%clk 0:00:19]}  Rc8 {[%clk 0:01:25]} 24. Rd2 {[%clk 0:00:16]}  Rxd2+ {[%clk 0:01:25]} 25. Bxd2 {[%clk 0:00:17]}  Rd8 {[%clk 0:01:21]} 26. Bf4 {[%clk 0:00:16]}  Rc8 {[%clk 0:01:18]} 27. Rd1 {[%clk 0:00:16]}  h6 {[%clk 0:01:17]} 28. Rd7 {[%clk 0:00:16]}  Bf6 {[%clk 0:01:11]} 29. Rxc7 {[%clk 0:00:16]}  Re8 {[%clk 0:01:11]} 30. e7 {[%clk 0:00:15]}  Rxe7 {[%clk 0:01:10]} 31. Rxe7 {[%clk 0:00:15]}  Bxe7 {[%clk 0:01:11]} 32. Kf2 {[%clk 0:00:15]}  Bc5+ {[%clk 0:01:10]} 33. Be3 {[%clk 0:00:15]}  Bd6 {[%clk 0:01:10]} 34. Ke2 {[%clk 0:00:15]}  Kf7 {[%clk 0:01:10]} 35. Kd3 {[%clk 0:00:15]}  g5 {[%clk 0:01:10]} 36. Ke4 {[%clk 0:00:15]}  Ke6 {[%clk 0:01:09]} 37. f4 {[%clk 0:00:15]}  gxf4 {[%clk 0:01:09]} 38. Bxf4 {[%clk 0:00:15]}  Bc5 {[%clk 0:01:09]} 39. Bxh6 {[%clk 0:00:15]}  Bg1 {[%clk 0:01:07]} 40. h3 {[%clk 0:00:15]}  Bh2 {[%clk 0:01:07]} 41. g4 {[%clk 0:00:15]}  c5 {[%clk 0:01:06]} 42. Bf4 {[%clk 0:00:16]}  Bg1 {[%clk 0:01:05]} 43. g5 {[%clk 0:00:16]}  a6 {[%clk 0:01:04]} 44. h4 {[%clk 0:00:15]}  b5 {[%clk 0:01:04]} 45. h5 {[%clk 0:00:16]}  b4 {[%clk 0:01:03]} 46. cxb4 {[%clk 0:00:13]}  cxb4 {[%clk 0:01:04]} 47. g6 {[%clk 0:00:12]} 1-0


[Site "https://www.chess.com"]

[Event "Titled Tuesday Blitz November 29 Late 2022"]
[White "D`Arruda, Ricardo D."]
[Black "Radovanovic, Dusan"]
[WhiteFideId "100692"]
[BlackFideId "926868"]
[WhiteElo "2457"]
[BlackElo "2341"]
[Result "1-0"]
[Round "08"]
[TimeControl "180+1"]
[Date "2022.11.30"]
[WhiteClock "0:00:41"]
[BlackClock "0:00:08"]

1. d4 {[%clk 0:02:51]}  Nf6 {[%clk 0:02:58]} 2. Nf3 {[%clk 0:02:50]}  e6 {[%clk 0:02:58]} 3. g3 {[%clk 0:02:48]}  c5 {[%clk 0:02:55]} 4. Bg2 {[%clk 0:02:48]}  cxd4 {[%clk 0:02:52]} 5. O-O {[%clk 0:02:47]}  d5 {[%clk 0:02:49]} 6. Nxd4 {[%clk 0:02:47]}  Nc6 {[%clk 0:02:48]} 7. c4 {[%clk 0:02:47]}  Be7 {[%clk 0:02:48]} 8. Nc3 {[%clk 0:02:47]}  O-O {[%clk 0:02:47]} 9. cxd5 {[%clk 0:02:37]}  exd5 {[%clk 0:02:47]} 10. b3 {[%clk 0:02:36]}  Re8 {[%clk 0:02:45]} 11. Bb2 {[%clk 0:02:35]}  Bc5 {[%clk 0:02:34]} 12. e3 {[%clk 0:02:26]}  Bg4 {[%clk 0:02:32]} 13. Qd2 {[%clk 0:02:21]}  Nxd4 {[%clk 0:02:24]} 14. exd4 {[%clk 0:02:19]}  Bb6 {[%clk 0:02:25]} 15. h3 {[%clk 0:02:17]}  Bh5 {[%clk 0:02:24]} 16. Rfe1 {[%clk 0:02:15]}  Qd7 {[%clk 0:02:22]} 17. Re5 {[%clk 0:02:10]}  Ba5 {[%clk 0:02:07]} 18. Qd3 {[%clk 0:01:38]}  Bg6 {[%clk 0:02:05]} 19. Qb5 {[%clk 0:01:25]}  Qxb5 {[%clk 0:01:50]} 20. Nxb5 {[%clk 0:01:26]}  Rxe5 {[%clk 0:01:43]} 21. dxe5 {[%clk 0:01:27]}  Ne4 {[%clk 0:01:44]} 22. Rd1 {[%clk 0:01:20]}  Rd8 {[%clk 0:01:32]} 23. Nxa7 {[%clk 0:01:15]}  Bb6 {[%clk 0:01:05]} 24. Bd4 {[%clk 0:01:09]}  Bxa7 {[%clk 0:01:01]} 25. Bxa7 {[%clk 0:01:07]}  Nc3 {[%clk 0:00:55]} 26. Rd2 {[%clk 0:01:06]}  Nb5 {[%clk 0:00:42]} 27. Bd4 {[%clk 0:01:00]}  Bf5 {[%clk 0:00:34]} 28. a4 {[%clk 0:00:57]}  Nxd4 {[%clk 0:00:27]} 29. Rxd4 {[%clk 0:00:58]}  Be6 {[%clk 0:00:26]} 30. f4 {[%clk 0:00:54]}  g6 {[%clk 0:00:26]} 31. g4 {[%clk 0:00:54]}  Rc8 {[%clk 0:00:18]} 32. f5 {[%clk 0:00:52]}  gxf5 {[%clk 0:00:17]} 33. gxf5 {[%clk 0:00:53]}  Bxf5 {[%clk 0:00:18]} 34. Bxd5 {[%clk 0:00:53]}  Rc2 {[%clk 0:00:18]} 35. Bxb7 {[%clk 0:00:45]}  Bxh3 {[%clk 0:00:15]} 36. a5 {[%clk 0:00:44]}  Be6 {[%clk 0:00:11]} 37. b4 {[%clk 0:00:43]}  Ra2 {[%clk 0:00:11]} 38. a6 {[%clk 0:00:43]}  h5 {[%clk 0:00:10]} 39. b5 {[%clk 0:00:42]}  h4 {[%clk 0:00:08]} 40. Rxh4 {[%clk 0:00:41]} 1-0


[Site "https://www.chess.com"]

[Event "Titled Tuesday Blitz November 29 Late 2022"]
[White "Dardha, Daniel"]
[Black "Boyer, Mahel"]
[WhiteFideId "240990"]
[BlackFideId "45102422"]
[WhiteElo "2528"]
[BlackElo "2454"]
[Result "1-0"]
[Round "08"]
[TimeControl "180+1"]
[Date "2022.11.30"]
[WhiteClock "0:00:19"]
[BlackClock "0:00:03"]

1. c4 {[%clk 0:02:59]}  g6 {[%clk 0:02:59]} 2. Nc3 {[%clk 0:02:58]}  Bg7 {[%clk 0:03:00]} 3. d4 {[%clk 0:02:53]}  d6 {[%clk 0:02:59]} 4. Nf3 {[%clk 0:02:52]}  e5 {[%clk 0:03:00]} 5. e4 {[%clk 0:02:47]}  Ne7 {[%clk 0:02:57]} 6. dxe5 {[%clk 0:02:44]}  dxe5 {[%clk 0:02:58]} 7. Qxd8+ {[%clk 0:02:45]}  Kxd8 {[%clk 0:02:59]} 8. Bg5 {[%clk 0:02:46]}  f6 {[%clk 0:02:59]} 9. O-O-O+ {[%clk 0:02:46]}  Bd7 {[%clk 0:02:58]} 10. Be3 {[%clk 0:02:46]}  c6 {[%clk 0:02:58]} 11. g4 {[%clk 0:02:45]}  h6 {[%clk 0:02:55]} 12. Rg1 {[%clk 0:02:41]}  g5 {[%clk 0:02:53]} 13. c5 {[%clk 0:02:33]}  Na6 {[%clk 0:02:45]} 14. Bxa6 {[%clk 0:02:29]}  bxa6 {[%clk 0:02:46]} 15. Nd2 {[%clk 0:02:29]}  Be6 {[%clk 0:02:41]} 16. Kc2 {[%clk 0:02:13]}  Kc7 {[%clk 0:02:41]} 17. f3 {[%clk 0:02:12]}  Ng6 {[%clk 0:02:34]} 18. Ne2 {[%clk 0:02:01]}  h5 {[%clk 0:02:31]} 19. h3 {[%clk 0:02:00]}  hxg4 {[%clk 0:02:26]} 20. hxg4 {[%clk 0:02:01]}  Rh2 {[%clk 0:02:25]} 21. Ng3 {[%clk 0:02:00]}  Nh4 {[%clk 0:02:21]} 22. Kc3 {[%clk 0:01:47]}  Rh3 {[%clk 0:01:40]} 23. Rdf1 {[%clk 0:01:39]}  Rd8 {[%clk 0:01:23]} 24. Nf5 {[%clk 0:01:27]}  Nxf5 {[%clk 0:00:34]} 25. gxf5 {[%clk 0:01:26]}  Bf7 {[%clk 0:00:33]} 26. Rh1 {[%clk 0:01:07]}  Rdh8 {[%clk 0:00:33]} 27. Rxh3 {[%clk 0:01:07]}  Rxh3 {[%clk 0:00:34]} 28. Kd3 {[%clk 0:01:05]}  Bh5 {[%clk 0:00:28]} 29. b3 {[%clk 0:00:56]}  Bf8 {[%clk 0:00:25]} 30. Ke2 {[%clk 0:00:50]}  g4 {[%clk 0:00:20]} 31. fxg4 {[%clk 0:00:51]}  Bxg4+ {[%clk 0:00:21]} 32. Kf2 {[%clk 0:00:51]}  Rh2+ {[%clk 0:00:15]} 33. Kg3 {[%clk 0:00:49]}  Rh3+ {[%clk 0:00:15]} 34. Kxg4 {[%clk 0:00:34]}  Rxe3 {[%clk 0:00:16]} 35. Rh1 {[%clk 0:00:32]}  Bxc5 {[%clk 0:00:15]} 36. Rh7+ {[%clk 0:00:32]}  Kc8 {[%clk 0:00:14]} 37. Rf7 {[%clk 0:00:32]}  Bb4 {[%clk 0:00:14]} 38. Nc4 {[%clk 0:00:31]}  Rxe4+ {[%clk 0:00:14]} 39. Kh5 {[%clk 0:00:31]}  Rf4 {[%clk 0:00:08]} 40. Rxf6 {[%clk 0:00:31]}  Be7 {[%clk 0:00:06]} 41. Rxc6+ {[%clk 0:00:25]}  Kb7 {[%clk 0:00:06]} 42. Na5+ {[%clk 0:00:20]}  Kb8 {[%clk 0:00:05]} 43. Kg6 {[%clk 0:00:20]}  Bb4 {[%clk 0:00:02]} 44. Nc4 {[%clk 0:00:19]}  e4 {[%clk 0:00:03]} 45. Re6 {[%clk 0:00:18]}  Bc5 {[%clk 0:00:03]} 46. f6 {[%clk 0:00:18]}  e3 {[%clk 0:00:03]} 47. Nxe3 {[%clk 0:00:17]}  Bxe3 {[%clk 0:00:04]} 48. Rxe3 {[%clk 0:00:18]}  Kc7 {[%clk 0:00:05]} 49. f7 {[%clk 0:00:18]}  Kd6 {[%clk 0:00:05]} 50. Kg7 {[%clk 0:00:18]}  Rg4+ {[%clk 0:00:05]} 51. Kh7 {[%clk 0:00:18]}  Rf4 {[%clk 0:00:06]} 52. Kg8 {[%clk 0:00:19]}  Rg4+ {[%clk 0:00:06]} 53. Kf8 {[%clk 0:00:19]}  Rg3 {[%clk 0:00:03]} 54. Rxg3 {[%clk 0:00:19]} 1-0


[Site "https://www.chess.com"]

[Event "Titled Tuesday Blitz November 29 Late 2022"]
[White "Deac, Bogdan-Daniel"]
[Black "Sadhwani, Raunak"]
[WhiteFideId "1226380"]
[BlackFideId "35093487"]
[WhiteElo "2648"]
[BlackElo "2656"]
[Result "1-0"]
[Round "08"]
[TimeControl "180+1"]
[Date "2022.11.30"]
[WhiteClock "0:00:04"]
[BlackClock "0:00:12"]

1. d4 {[%clk 0:03:00]}  Nf6 {[%clk 0:02:59]} 2. Nf3 {[%clk 0:03:01]}  e6 {[%clk 0:03:00]} 3. e3 {[%clk 0:03:01]}  d5 {[%clk 0:03:00]} 4. c4 {[%clk 0:03:01]}  Bd6 {[%clk 0:02:54]} 5. Nc3 {[%clk 0:03:00]}  O-O {[%clk 0:02:50]} 6. b3 {[%clk 0:03:01]}  b6 {[%clk 0:02:50]} 7. Bb2 {[%clk 0:03:00]}  Bb7 {[%clk 0:02:50]} 8. cxd5 {[%clk 0:03:01]}  exd5 {[%clk 0:02:51]} 9. g3 {[%clk 0:03:01]}  Nbd7 {[%clk 0:02:47]} 10. Bg2 {[%clk 0:03:01]}  Ba6 {[%clk 0:02:47]} 11. a3 {[%clk 0:02:58]}  Re8 {[%clk 0:02:46]} 12. Ne2 {[%clk 0:02:58]}  c5 {[%clk 0:02:43]} 13. O-O {[%clk 0:02:57]}  Rc8 {[%clk 0:02:40]} 14. Re1 {[%clk 0:02:54]}  c4 {[%clk 0:02:40]} 15. bxc4 {[%clk 0:02:52]}  Bxc4 {[%clk 0:02:41]} 16. Nd2 {[%clk 0:02:49]}  Ba6 {[%clk 0:02:33]} 17. Nc3 {[%clk 0:02:44]}  Bb7 {[%clk 0:02:34]} 18. Qb3 {[%clk 0:02:42]}  Ne4 {[%clk 0:01:56]} 19. Ndxe4 {[%clk 0:02:41]}  dxe4 {[%clk 0:01:57]} 20. a4 {[%clk 0:02:41]}  a6 {[%clk 0:01:46]} 21. Ba3 {[%clk 0:02:34]}  Bxa3 {[%clk 0:01:46]} 22. Rxa3 {[%clk 0:02:33]}  Nf6 {[%clk 0:01:47]} 23. Rb1 {[%clk 0:02:32]}  Re6 {[%clk 0:01:47]} 24. Bh3 {[%clk 0:02:31]}  Rxc3 {[%clk 0:01:45]} 25. Qxc3 {[%clk 0:02:31]}  Rc6 {[%clk 0:01:44]} 26. Qb2 {[%clk 0:02:31]}  Qc7 {[%clk 0:01:37]} 27. Raa1 {[%clk 0:02:30]}  Nd5 {[%clk 0:01:33]} 28. Rc1 {[%clk 0:02:30]}  Nc3 {[%clk 0:01:33]} 29. Bf1 {[%clk 0:02:14]}  h5 {[%clk 0:01:26]} 30. d5 {[%clk 0:02:01]}  Nxd5 {[%clk 0:01:23]} 31. Rxc6 {[%clk 0:01:53]}  Qxc6 {[%clk 0:01:24]} 32. Qe5 {[%clk 0:01:37]}  Nf6 {[%clk 0:01:14]} 33. Rd1 {[%clk 0:01:25]}  Qc8 {[%clk 0:00:56]} 34. Qe7 {[%clk 0:01:17]}  Kh7 {[%clk 0:00:52]} 35. Rd8 {[%clk 0:00:52]}  Qc6 {[%clk 0:00:49]} 36. Qxf7 {[%clk 0:00:33]}  Bc8 {[%clk 0:00:48]} 37. Qc4 {[%clk 0:00:32]}  Qxc4 {[%clk 0:00:48]} 38. Bxc4 {[%clk 0:00:32]}  Bd7 {[%clk 0:00:49]} 39. Bxa6 {[%clk 0:00:31]}  Bxa4 {[%clk 0:00:49]} 40. Rb8 {[%clk 0:00:29]}  Nd7 {[%clk 0:00:50]} 41. Rb7 {[%clk 0:00:29]}  Bc6 {[%clk 0:00:50]} 42. Rc7 {[%clk 0:00:28]}  Ba4 {[%clk 0:00:50]} 43. Bb7 {[%clk 0:00:23]}  Nc5 {[%clk 0:00:50]} 44. Bc6 {[%clk 0:00:23]}  Bc2 {[%clk 0:00:36]} 45. Rc8 {[%clk 0:00:22]}  Nb3 {[%clk 0:00:24]} 46. Bd5 {[%clk 0:00:16]}  Nc5 {[%clk 0:00:24]} 47. Rb8 {[%clk 0:00:16]}  Nd7 {[%clk 0:00:24]} 48. Rb7 {[%clk 0:00:15]}  Ne5 {[%clk 0:00:25]} 49. Rxb6 {[%clk 0:00:12]}  Nf3+ {[%clk 0:00:22]} 50. Kh1 {[%clk 0:00:12]}  h4 {[%clk 0:00:19]} 51. gxh4 {[%clk 0:00:11]}  Nxh4 {[%clk 0:00:16]} 52. Rb4 {[%clk 0:00:11]}  Kh6 {[%clk 0:00:15]} 53. Bxe4 {[%clk 0:00:11]}  Bd1 {[%clk 0:00:16]} 54. Kg1 {[%clk 0:00:09]}  g6 {[%clk 0:00:16]} 55. Rb6 {[%clk 0:00:09]}  Kg5 {[%clk 0:00:16]} 56. f4+ {[%clk 0:00:08]}  Kg4 {[%clk 0:00:17]} 57. Kf2 {[%clk 0:00:09]}  Kh3 {[%clk 0:00:17]} 58. Rb8 {[%clk 0:00:05]}  Bh5 {[%clk 0:00:15]} 59. Rh8 {[%clk 0:00:05]}  Kg4 {[%clk 0:00:15]} 60. Rh6 {[%clk 0:00:04]}  Kh3 {[%clk 0:00:16]} 61. Rh8 {[%clk 0:00:03]}  Kg4 {[%clk 0:00:16]} 62. Bg2 {[%clk 0:00:04]}  Nf5 {[%clk 0:00:15]} 63. h3+ {[%clk 0:00:04]}  Kh4 {[%clk 0:00:15]} 64. Bf3 {[%clk 0:00:04]}  Ng3 {[%clk 0:00:14]} 65. Bxh5 {[%clk 0:00:04]}  Nxh5 {[%clk 0:00:15]} 66. Kf3 {[%clk 0:00:03]}  Kxh3 {[%clk 0:00:14]} 67. f5 {[%clk 0:00:04]}  Kh4 {[%clk 0:00:12]} 68. fxg6 {[%clk 0:00:04]}  Kg5 {[%clk 0:00:12]} 69. Rxh5+ {[%clk 0:00:04]} 1-0


[Site "https://www.chess.com"]

[Event "Titled Tuesday Blitz November 29 Late 2022"]
[White "Dylag, Emilia"]
[Black "Souleidis, Georgios"]
[WhiteFideId "21805172"]
[BlackFideId "4206827"]
[WhiteElo "1878"]
[BlackElo "2401"]
[Result "0-1"]
[Round "08"]
[TimeControl "180+1"]
[Date "2022.11.30"]
[WhiteClock "0:00:41"]
[BlackClock "0:00:39"]

1. d4 {[%clk 0:03:00]}  Nf6 {[%clk 0:02:59]} 2. c4 {[%clk 0:02:58]}  g6 {[%clk 0:02:59]} 3. g3 {[%clk 0:02:56]}  Bg7 {[%clk 0:02:59]} 4. Bg2 {[%clk 0:02:56]}  O-O {[%clk 0:02:59]} 5. Nf3 {[%clk 0:02:54]}  d6 {[%clk 0:02:59]} 6. Nc3 {[%clk 0:02:54]}  Nc6 {[%clk 0:02:59]} 7. O-O {[%clk 0:02:54]}  e5 {[%clk 0:02:59]} 8. d5 {[%clk 0:02:53]}  Nb8 {[%clk 0:02:59]} 9. c5 {[%clk 0:02:54]}  Na6 {[%clk 0:02:57]} 10. cxd6 {[%clk 0:02:49]}  cxd6 {[%clk 0:02:58]} 11. b3 {[%clk 0:02:35]}  Ne8 {[%clk 0:02:56]} 12. Ba3 {[%clk 0:02:32]}  f5 {[%clk 0:02:55]} 13. Rc1 {[%clk 0:02:32]}  Bd7 {[%clk 0:02:48]} 14. h4 {[%clk 0:02:27]}  h6 {[%clk 0:02:47]} 15. e4 {[%clk 0:02:11]}  f4 {[%clk 0:02:43]} 16. Qd3 {[%clk 0:02:07]}  g5 {[%clk 0:01:50]} 17. hxg5 {[%clk 0:02:02]}  hxg5 {[%clk 0:01:51]} 18. gxf4 {[%clk 0:01:35]}  Rxf4 {[%clk 0:01:42]} 19. Nh2 {[%clk 0:01:30]}  Rc8 {[%clk 0:01:28]} 20. Ne2 {[%clk 0:01:28]}  Rf7 {[%clk 0:01:26]} 21. Ng3 {[%clk 0:01:25]}  Rxc1 {[%clk 0:01:16]} 22. Bxc1 {[%clk 0:01:23]}  Nc5 {[%clk 0:01:11]} 23. Qe3 {[%clk 0:01:19]}  g4 {[%clk 0:01:08]} 24. b4 {[%clk 0:01:18]}  Na6 {[%clk 0:01:05]} 25. a3 {[%clk 0:01:12]}  b6 {[%clk 0:00:52]} 26. Qg5 {[%clk 0:01:07]}  Qxg5 {[%clk 0:00:44]} 27. Bxg5 {[%clk 0:01:08]}  Nac7 {[%clk 0:00:44]} 28. Rc1 {[%clk 0:01:04]}  Nb5 {[%clk 0:00:43]} 29. Ne2 {[%clk 0:00:46]}  Nxa3 {[%clk 0:00:39]} 30. Ra1 {[%clk 0:00:40]}  Nb5 {[%clk 0:00:39]} 31. Rxa7 {[%clk 0:00:41]}  Nxa7 {[%clk 0:00:39]} 0-1


[Site "https://www.chess.com"]

[Event "Titled Tuesday Blitz November 29 Late 2022"]
[White "Dzierzak, Radoslaw"]
[Black "Figorito, Nick"]
[WhiteFideId "1161407"]
[BlackFideId "30923689"]
[WhiteElo "2111"]
[BlackElo "2331"]
[Result "1-0"]
[Round "08"]
[TimeControl "180+1"]
[Date "2022.11.30"]
[WhiteClock "0:00:05"]
[BlackClock "0:00:01"]

1. e4 {[%clk 0:03:00]}  e6 {[%clk 0:03:00]} 2. Nf3 {[%clk 0:02:59]}  d5 {[%clk 0:03:01]} 3. Nc3 {[%clk 0:02:59]}  d4 {[%clk 0:03:01]} 4. Ne2 {[%clk 0:02:59]}  c5 {[%clk 0:03:01]} 5. c3 {[%clk 0:02:59]}  Nf6 {[%clk 0:03:01]} 6. e5 {[%clk 0:02:57]}  Nfd7 {[%clk 0:03:02]} 7. cxd4 {[%clk 0:02:56]}  cxd4 {[%clk 0:03:03]} 8. Nexd4 {[%clk 0:02:57]}  Nxe5 {[%clk 0:03:03]} 9. Bb5+ {[%clk 0:02:57]}  Nec6 {[%clk 0:03:00]} 10. O-O {[%clk 0:02:53]}  Be7 {[%clk 0:02:56]} 11. b3 {[%clk 0:02:48]}  O-O {[%clk 0:02:55]} 12. Nc2 {[%clk 0:02:45]}  e5 {[%clk 0:02:48]} 13. Bb2 {[%clk 0:02:18]}  Bf6 {[%clk 0:02:47]} 14. d4 {[%clk 0:02:10]}  exd4 {[%clk 0:02:46]} 15. Ncxd4 {[%clk 0:02:09]}  Nxd4 {[%clk 0:02:45]} 16. Bxd4 {[%clk 0:02:06]}  a6 {[%clk 0:02:41]} 17. Bc4 {[%clk 0:02:04]}  Nc6 {[%clk 0:02:37]} 18. Bxf6 {[%clk 0:01:53]}  Qxf6 {[%clk 0:02:38]} 19. Qd5 {[%clk 0:01:27]}  Be6 {[%clk 0:02:28]} 20. Qc5 {[%clk 0:01:16]}  Rac8 {[%clk 0:02:08]} 21. Bxe6 {[%clk 0:01:06]}  Qxe6 {[%clk 0:02:06]} 22. Rfe1 {[%clk 0:01:05]}  Qf6 {[%clk 0:02:05]} 23. Qb6 {[%clk 0:01:03]}  Rb8 {[%clk 0:02:00]} 24. Rad1 {[%clk 0:00:59]}  h6 {[%clk 0:01:42]} 25. h3 {[%clk 0:00:57]}  Qb2 {[%clk 0:01:27]} 26. Rd2 {[%clk 0:00:54]}  Qa3 {[%clk 0:01:24]} 27. Red1 {[%clk 0:00:49]}  Qb4 {[%clk 0:01:22]} 28. Qxb4 {[%clk 0:00:45]}  Nxb4 {[%clk 0:01:23]} 29. a3 {[%clk 0:00:44]}  Nc6 {[%clk 0:01:19]} 30. Kf1 {[%clk 0:00:40]}  Rfd8 {[%clk 0:01:17]} 31. b4 {[%clk 0:00:32]}  Kf8 {[%clk 0:01:14]} 32. Rxd8+ {[%clk 0:00:25]}  Rxd8 {[%clk 0:01:15]} 33. Rxd8+ {[%clk 0:00:24]}  Nxd8 {[%clk 0:01:16]} 34. Ke2 {[%clk 0:00:22]}  Nc6 {[%clk 0:01:16]} 35. Kd3 {[%clk 0:00:21]}  Ke7 {[%clk 0:01:16]} 36. Kc4 {[%clk 0:00:20]}  Kd6 {[%clk 0:01:15]} 37. a4 {[%clk 0:00:16]}  f5 {[%clk 0:00:38]} 38. b5 {[%clk 0:00:14]}  axb5+ {[%clk 0:00:29]} 39. Kxb5 {[%clk 0:00:14]}  Kc7 {[%clk 0:00:25]} 40. a5 {[%clk 0:00:08]}  g5 {[%clk 0:00:20]} 41. g4 {[%clk 0:00:08]}  fxg4 {[%clk 0:00:18]} 42. hxg4 {[%clk 0:00:08]}  Kc8 {[%clk 0:00:11]} 43. Kb6 {[%clk 0:00:08]}  Nb4 {[%clk 0:00:08]} 44. Nd4 {[%clk 0:00:07]}  Nd3 {[%clk 0:00:07]} 45. f3 {[%clk 0:00:07]}  Ne5 {[%clk 0:00:06]} 46. Nf5 {[%clk 0:00:04]}  Nxf3 {[%clk 0:00:06]} 47. Nd6+ {[%clk 0:00:05]}  Kd7 {[%clk 0:00:05]} 48. Nxb7 {[%clk 0:00:05]}  Ne5 {[%clk 0:00:05]} 49. a6 {[%clk 0:00:05]}  Nc4+ {[%clk 0:00:03]} 50. Kb5 {[%clk 0:00:05]}  Kc7 {[%clk 0:00:01]} 51. Kxc4 {[%clk 0:00:05]} 1-0


[Site "https://www.chess.com"]

[Event "Titled Tuesday Blitz November 29 Late 2022"]
[White "Fareh, Youness"]
[Black "Torres Dominguez, David"]
[WhiteFideId "9000526"]
[BlackFideId "2220857"]
[WhiteElo "1839"]
[BlackElo "2037"]
[Result "0-1"]
[Round "08"]
[TimeControl "180+1"]
[Date "2022.11.30"]
[WhiteClock "0:00:33"]
[BlackClock "0:00:14"]

1. Nf3 {[%clk 0:02:59]}  d5 {[%clk 0:02:54]} 2. c4 {[%clk 0:02:59]}  e6 {[%clk 0:02:52]} 3. g3 {[%clk 0:02:56]}  Nf6 {[%clk 0:02:52]} 4. Bg2 {[%clk 0:02:56]}  c6 {[%clk 0:02:52]} 5. O-O {[%clk 0:02:57]}  Be7 {[%clk 0:02:53]} 6. d4 {[%clk 0:02:57]}  O-O {[%clk 0:02:53]} 7. b3 {[%clk 0:02:58]}  Nbd7 {[%clk 0:02:53]} 8. Bb2 {[%clk 0:02:58]}  b6 {[%clk 0:02:52]} 9. Nbd2 {[%clk 0:02:58]}  Bb7 {[%clk 0:02:51]} 10. Ne5 {[%clk 0:02:57]}  Nxe5 {[%clk 0:02:46]} 11. dxe5 {[%clk 0:02:57]}  Nd7 {[%clk 0:02:47]} 12. cxd5 {[%clk 0:02:56]}  cxd5 {[%clk 0:02:41]} 13. e4 {[%clk 0:02:50]}  dxe4 {[%clk 0:02:40]} 14. Nxe4 {[%clk 0:02:50]}  Rb8 {[%clk 0:02:06]} 15. Rc1 {[%clk 0:02:44]}  Nc5 {[%clk 0:02:04]} 16. Qe2 {[%clk 0:02:17]}  Nxe4 {[%clk 0:01:39]} 17. Bxe4 {[%clk 0:02:18]}  Bc5 {[%clk 0:01:31]} 18. Rcd1 {[%clk 0:02:10]}  Qe7 {[%clk 0:01:30]} 19. Kg2 {[%clk 0:02:03]}  Bxe4+ {[%clk 0:01:25]} 20. Qxe4 {[%clk 0:02:04]}  Rfd8 {[%clk 0:01:25]} 21. h4 {[%clk 0:02:02]}  h6 {[%clk 0:01:21]} 22. f4 {[%clk 0:01:57]}  Rxd1 {[%clk 0:01:10]} 23. Rxd1 {[%clk 0:01:57]}  g6 {[%clk 0:00:58]} 24. Qd3 {[%clk 0:01:44]}  Qb7+ {[%clk 0:00:55]} 25. Kh2 {[%clk 0:01:42]}  Be7 {[%clk 0:00:55]} 26. Qd7 {[%clk 0:01:39]}  Kf8 {[%clk 0:00:39]} 27. Qxb7 {[%clk 0:01:19]}  Rxb7 {[%clk 0:00:38]} 28. Kg2 {[%clk 0:01:20]}  Ke8 {[%clk 0:00:37]} 29. Kf2 {[%clk 0:01:21]}  h5 {[%clk 0:00:38]} 30. Kf3 {[%clk 0:01:21]}  Rd7 {[%clk 0:00:38]} 31. Rxd7 {[%clk 0:01:19]}  Kxd7 {[%clk 0:00:38]} 32. Ke4 {[%clk 0:01:20]}  Kc6 {[%clk 0:00:38]} 33. a4 {[%clk 0:01:16]}  a6 {[%clk 0:00:39]} 34. Bc3 {[%clk 0:01:10]}  b5 {[%clk 0:00:39]} 35. Kd4 {[%clk 0:01:07]}  Bc5+ {[%clk 0:00:37]} 36. Ke4 {[%clk 0:01:06]}  Bf2 {[%clk 0:00:35]} 37. Kf3 {[%clk 0:01:06]}  Bc5 {[%clk 0:00:35]} 38. Ke4 {[%clk 0:01:06]}  bxa4 {[%clk 0:00:28]} 39. bxa4 {[%clk 0:01:06]}  Bb6 {[%clk 0:00:27]} 40. Bb4 {[%clk 0:01:06]}  Bc5 {[%clk 0:00:25]} 41. Bc3 {[%clk 0:01:05]}  Ba7 {[%clk 0:00:23]} 42. Bb4 {[%clk 0:01:04]}  Bg1 {[%clk 0:00:20]} 43. a5 {[%clk 0:00:58]}  Bc5 {[%clk 0:00:18]} 44. Be1 {[%clk 0:00:57]}  Kb5 {[%clk 0:00:18]} 45. Kd3 {[%clk 0:00:57]}  Bb4 {[%clk 0:00:17]} 46. Bf2 {[%clk 0:00:54]}  Bxa5 {[%clk 0:00:17]} 47. Kc2 {[%clk 0:00:50]}  Bb6 {[%clk 0:00:17]} 48. Be1 {[%clk 0:00:50]}  Bd4 {[%clk 0:00:16]} 49. Kb3 {[%clk 0:00:50]}  a5 {[%clk 0:00:16]} 50. Ka3 {[%clk 0:00:48]}  a4 {[%clk 0:00:17]} 51. Ka2 {[%clk 0:00:46]}  Bc5 {[%clk 0:00:16]} 52. Kb2 {[%clk 0:00:44]}  Kc4 {[%clk 0:00:17]} 53. Kc2 {[%clk 0:00:42]}  a3 {[%clk 0:00:15]} 54. Kb1 {[%clk 0:00:39]}  Kb3 {[%clk 0:00:14]} 55. Ka1 {[%clk 0:00:33]}  Bd4+ {[%clk 0:00:13]} 56. Kb1 {[%clk 0:00:33]}  a2+ {[%clk 0:00:14]} 0-1


[Site "https://www.chess.com"]